Workbook

Sheet Romania Map
B2: Thematic Map of Romania
M6: Relative Importance | P6: Weight
P7: Raw | Q7: Normalized
M8: Contains Major Airport
P9: 24 | Q9: =P9/SUM($P$9:$P$18) -> 0.1304347826
M11: No. of Mountain Peaks
P12: 65 | Q12: =P12/SUM($P$9:$P$18) -> 0.3532608696
M14: Population Density
P15: 57 | Q15: =P15/SUM($P$9:$P$18) -> 0.3097826087
M17: Elevation
P18: 38 | Q18: =P18/SUM($P$9:$P$18) -> 0.2065217391
Q20: =SUM(Q9:Q18) -> 1
M23: Top Five Locations | P23: MAUT Results
M24: 1 | O24: =Model!P10 -> Caraș-Severin | Q24: =Model!Q10 -> 0.8465337395
M25: 2 | O25: =Model!P11 -> Mureș | Q25: =Model!Q11 -> 0.8398469953
M26: 3 | O26: =Model!P12 -> Călărași | Q26: =Model!Q12 -> 0.8385096465
M27: 4 | O27: =Model!P13 -> Maramureș | Q27: =Model!Q13 -> 0.7709083356
M28: 5 | O28: =Model!P14 -> Bistrița-Năsăud | Q28: =Model!Q14 -> 0.7622923013
B37: 0.2450620298 | K37: 0.8985486904

Sheet Model
B2: Model
B4: Range Maximum | E4: =MAX(E10:E50) -> 1 | G4: =MAX(G10:G50) -> 7 | I4: =MAX(I10:I50) -> 188 | K4: =MAX(K10:K50) -> 6
B5: Range Minimum | E5: =MIN(E10:E50) -> 0 | G5: =MIN(G10:G50) -> 0 | I5: =MIN(I10:I50) -> 31 | K5: =MIN(K10:K50) -> 0
B6: Weight | E6: =AirportW -> 0.1304347826 | G6: =PeaksW -> 0.3532608696 | I6: =PopW -> 0.3097826087 | K6: =EnvW -> 0.2065217391
B7: Range | E7: =MaxA-MinA -> 1 | G7: =MaxP-MinP -> 7 | I7: =MaxPD-MinPD -> 157 | K7: =MaxE-MinE -> 6
B9: No. | C9: State | D9: Abbreviation | E9: Airport | G9: High Peaks | I9: Population Density | K9: Elevation | M9: MAUT | N9: Ideal Location
B10: 1 | C10: Alba | D10: AB | E10: =Data!E5 -> 0 | F10: =((E10-MinA)/(MaxA-MinA))*$E$6 -> 0 | G10: =Data!F5 -> 5 | H10: =((MaxP-G10)/(MaxP-MinP))*$G$6 -> 0.100931677 | I10: =Data!G5 -> 61 | J10: =((MaxPD-I10)/(MaxPD-MinPD))*$I$6 -> 0.2505884796 | K10: =(Data!H5) -> 3.5 | L10: =((K10-MinE)/(MaxE-MinE))*$K$6 -> 0.1204710145 | M10: =SUM(F10,H10,J10,L10) -> 0.4719911712 | O10: 1 | P10: =INDEX($C$10:$C$50, MATCH(Q10,Maut,FALSE),1) -> Caraș-Severin | Q10: =MAX(Maut) -> 0.8465337395
B11: =B10+1 -> 2 | C11: Arad | D11: AR | E11: =Data!E6 -> 1 | F11: 0.1304347826 | G11: =Data!F6 -> 2 | H11: 0.2523291925 | I11: =Data!G6 -> 59.5 | J11: 0.2535481861 | K11: =(Data!H6) -> 2.5 | L11: 0.08605072464 | M11: =SUM(F11,H11,J11,L11) -> 0.7223628859 | O11: 2 | P11: =INDEX($C$10:$C$50, MATCH(Q11,Maut,FALSE),1) -> Mureș | Q11: =LARGE(Maut,2) -> 0.8398469953
B12: 3 | C12: Argeș | D12: AG | E12: =Data!E7 -> 0 | F12: 0 | G12: =Data!F7 -> 0 | H12: 0.3532608696 | I12: =Data!G7 -> 95 | J12: 0.1835018001 | K12: =(Data!H7) -> 3 | L12: 0.1032608696 | M12: 0.6400235392 | O12: 3 | P12: =INDEX($C$10:$C$50, MATCH(Q12,Maut,FALSE),1) -> Călărași | Q12: =LARGE(Maut,3) -> 0.8385096465
B13: 4 | C13: Bacău | D13: BC | E13: =Data!E8 -> 0 | F13: 0 | G13: =Data!F8 -> 2 | H13: 0.2523291925 | I13: =Data!G8 -> 113 | J13: 0.1479853226 | K13: =(Data!H8) -> 3.2 | L13: 0.1101449275 | M13: 0.5104594427 | O13: 4 | P13: =INDEX($C$10:$C$50, MATCH(Q13,Maut,FALSE),1) -> Maramureș | Q13: =LARGE(Maut,4) -> 0.7709083356
B14: 5 | C14: Bihor | D14: BH | E14: =Data!E9 -> 1 | F14: 0.1304347826 | G14: =Data!F9 -> 2 | H14: 0.2523291925 | I14: =Data!G9 -> 84 | J14: 0.205206314 | K14: =(Data!H9) -> 1.5 | L14: 0.05163043478 | M14: 0.639600724 | O14: 5 | P14: =INDEX($C$10:$C$50, MATCH(Q14,Maut,FALSE),1) -> Bistrița-Năsăud | Q14: =LARGE(Maut,5) -> 0.7622923013
B15: 6 | C15: Bistrița-Năsăud | D15: BN | E15: =Data!E10 -> 0 | F15: 0 | G15: =Data!F10 -> 0 | H15: 0.3532608696 | I15: =Data!G10 -> 59.2 | J15: 0.2541401274 | K15: =(Data!H10) -> 4.5 | L15: 0.1548913043 | M15: 0.7622923013
B16: 7 | C16: Botoșani | D16: BT | E16: =Data!E11 -> 0 | F16: 0 | G16: =Data!F11 -> 0 | H16: 0.3532608696 | I16: =Data!G11 -> 91 | J16: 0.1913943506 | K16: =(Data!H11) -> 0 | L16: 0 | M16: 0.5446552202
B17: 8 | C17: Brăila | D17: BR | E17: =Data!E12 -> 1 | F17: 0.1304347826 | G17: =Data!F12 -> 0 | H17: 0.3532608696 | I17: =Data!G12 -> 78 | J17: 0.2170451399 | K17: =(Data!H12) -> 0 | L17: 0 | M17: 0.700740792 | R17: .
B18: 9 | C18: Brașov | D18: BV | E18: =Data!E13 -> 0 | F18: 0 | G18: =Data!F13 -> 0 | H18: 0.3532608696 | I18: =Data!G13 -> 111.2 | J18: 0.1515369704 | K18: =(Data!H13) -> 2.5 | L18: 0.08605072464 | M18: 0.5908485646
B19: 10 | C19: Buzău | D19: BZ | E19: =Data!E14 -> 1 | F19: 0.1304347826 | G19: =Data!F14 -> 2 | H19: 0.2523291925 | I19: =Data!G14 -> 81 | J19: 0.2111257269 | K19: =(Data!H14) -> 2 | L19: 0.06884057971 | M19: 0.6627302818
B20: 11 | C20: Călărași | D20: CL | E20: =Data!E15 -> 1 | F20: 0.1304347826 | G20: =Data!F15 -> 0 | H20: 0.3532608696 | I20: =Data!G15 -> 64 | J20: 0.2446690667 | K20: =(Data!H15) -> 3.2 | L20: 0.1101449275 | M20: 0.8385096465
B21: 12 | C21: Caraș-Severin | D21: CS | E21: =Data!E16 -> 1 | F21: 0.1304347826 | G21: =Data!F16 -> 0 | H21: 0.3532608696 | I21: =Data!G16 -> 39 | J21: 0.2939975076 | K21: =(Data!H16) -> 2 | L21: 0.06884057971 | M21: 0.8465337395
B22: 13 | C22: Cluj | D22: CJ | E22: =Data!E17 -> 1 | F22: 0.1304347826 | G22: =Data!F17 -> 2 | H22: 0.2523291925 | I22: =Data!G17 -> 105 | J22: 0.1637704237 | K22: =(Data!H17) -> 4.5 | L22: 0.1548913043 | M22: 0.7014257032
B23: 14 | C23: Constanța | D23: CT | E23: =Data!E18 -> 1 | F23: 0.1304347826 | G23: =Data!F18 -> 0 | H23: 0.3532608696 | I23: =Data!G18 -> 101 | J23: 0.1716629742 | K23: =(Data!H18) -> 0 | L23: 0 | M23: 0.6553586264
B24: 15 | C24: Covasna | D24: CV | E24: =Data!E19 -> 0 | F24: 0 | G24: =Data!F19 -> 2 | H24: 0.2523291925 | I24: =Data!G19 -> 60 | J24: 0.2525616173 | K24: =(Data!H19) -> 3.4 | L24: 0.1170289855 | M24: 0.6219197953
B25: 16 | C25: Dâmbovița | D25: DB | E25: =Data!E20 -> 0 | F25: 0 | G25: =Data!F20 -> 0 | H25: 0.3532608696 | I25: =Data!G20 -> 134 | J25: 0.1065494323 | K25: =(Data!H20) -> 1.3 | L25: 0.04474637681 | M25: 0.5045566787
B26: 17 | C26: Dolj | D26: DJ | E26: =Data!E21 -> 1 | F26: 0.1304347826 | G26: =Data!F21 -> 0 | H26: 0.3532608696 | I26: =Data!G21 -> 99 | J26: 0.1756092495 | K26: =(Data!H21) -> 0 | L26: 0 | M26: 0.6593049017
B27: 18 | C27: Galați | D27: GL | E27: =Data!E22 -> 0 | F27: 0 | G27: =Data!F22 -> 0 | H27: 0.3532608696 | I27: =Data!G22 -> 139 | J27: 0.09668374412 | K27: =(Data!H22) -> 1.2 | L27: 0.04130434783 | M27: 0.4912489615
B28: 19 | C28: Giurgiu | D28: GR | E28: =Data!E23 -> 0 | F28: 0 | G28: =Data!F23 -> 0 | H28: 0.3532608696 | I28: =Data!G23 -> 84 | J28: 0.205206314 | K28: =(Data!H23) -> 0 | L28: 0 | M28: 0.5584671836
B29: 20 | C29: Gorj | D29: GJ | E29: =Data!E24 -> 0 | F29: 0 | G29: =Data!F24 -> 2 | H29: 0.2523291925 | I29: =Data!G24 -> 69 | J29: 0.2348033786 | K29: =(Data!H24) -> 0 | L29: 0 | M29: 0.4871325711
B30: 21 | C30: Harghita | D30: HR | E30: =Data!E25 -> 0 | F30: 0 | G30: =Data!F25 -> 4 | H30: 0.1513975155 | I30: =Data!G25 -> 52 | J30: 0.2683467184 | K30: =(Data!H25) -> 4.5 | L30: 0.1548913043 | M30: 0.5746355382
B31: 22 | C31: Hunedoara | D31: HD | E31: =Data!E26 -> 0 | F31: 0 | G31: =Data!F26 -> 7 | H31: 0 | I31: =Data!G26 -> 69 | J31: 0.2348033786 | K31: =(Data!H26) -> 4 | L31: 0.1376811594 | M31: 0.372484538
B32: 23 | C32: Ialomița | D32: IL | E32: =Data!E27 -> 0 | F32: 0 | G32: =Data!F27 -> 0 | H32: 0.3532608696 | I32: =Data!G27 -> 67 | J32: 0.2387496538 | K32: =(Data!H27) -> 0 | L32: 0 | M32: 0.5920105234
B33: 24 | C33: Iași | D33: IS | E33: =Data!E28 -> 1 | F33: 0.1304347826 | G33: =Data!F28 -> 0 | H33: 0.3532608696 | I33: =Data!G28 -> 150 | J33: 0.07497923013 | K33: =(Data!H28) -> 1.2 | L33: 0.04130434783 | M33: 0.5999792301
B34: 25 | C34: Ilfov | D34: IF | E34: =Data!E29 -> 1 | F34: 0.1304347826 | G34: =Data!F29 -> 0 | H34: 0.3532608696 | I34: =Data!G29 -> 188 | J34: 0 | K34: =(Data!H29) -> 0 | L34: 0 | M34: 0.4836956522
B35: 26 | C35: Maramureș | D35: MM | E35: =Data!E30 -> 0 | F35: 0 | G35: =Data!F30 -> 0 | H35: 0.3532608696 | I35: =Data!G30 -> 81 | J35: 0.2111257269 | K35: =(Data!H30) -> 6 | L35: 0.2065217391 | M35: 0.7709083356
B36: 27 | C36: Mehedinți | D36: MH | E36: =Data!E31 -> 0 | F36: 0 | G36: =Data!F31 -> 0 | H36: 0.3532608696 | I36: =Data!G31 -> 62 | J36: 0.248615342 | K36: =(Data!H31) -> 1.7 | L36: 0.05851449275 | M36: 0.6603907043
B37: 28 | C37: Mureș | D37: MS | E37: =Data!E32 -> 1 | F37: 0.1304347826 | G37: =Data!F32 -> 0 | H37: 0.3532608696 | I37: =Data!G32 -> 86 | J37: 0.2012600388 | K37: =(Data!H32) -> 4.5 | L37: 0.1548913043 | M37: 0.8398469953
B38: 29 | C38: Neamț | D38: NT | E38: =Data!E33 -> 0 | F38: 0 | G38: =Data!F33 -> 0 | H38: 0.3532608696 | I38: =Data!G33 -> 99 | J38: 0.1756092495 | K38: =(Data!H33) -> 4.3 | L38: 0.1480072464 | M38: 0.6768773655
B39: 30 | C39: Olt | D39: OT | E39: =Data!E34 -> 1 | F39: 0.1304347826 | G39: =Data!F34 -> 0 | H39: 0.3532608696 | I39: =Data!G34 -> 89 | J39: 0.1953406259 | K39: =(Data!H34) -> 1.2 | L39: 0.04130434783 | M39: 0.7203406259
B40: 31 | C40: Prahova | D40: PH | E40: =Data!E35 -> 0 | F40: 0 | G40: =Data!F35 -> 2 | H40: 0.2523291925 | I40: =Data!G35 -> 176 | J40: 0.02367765162 | K40: =(Data!H35) -> 1.5 | L40: 0.05163043478 | M40: 0.3276372789
B41: 32 | C41: Sălaj | D41: SJ | E41: =Data!E36 -> 0 | F41: 0 | G41: =Data!F36 -> 1 | H41: 0.3027950311 | I41: =Data!G36 -> 64 | J41: 0.2446690667 | K41: =(Data!H36) -> 2 | L41: 0.06884057971 | M41: 0.6163046775
B42: 33 | C42: Satu-Mare | D42: SM | E42: =Data!E37 -> 0 | F42: 0 | G42: =Data!F37 -> 0 | H42: 0.3532608696 | I42: =Data!G37 -> 83 | J42: 0.2071794517 | K42: =(Data!H37) -> 1.2 | L42: 0.04130434783 | M42: 0.6017446691
B43: 34 | C43: Sibiu | D43: SB | E43: =Data!E38 -> 1 | F43: 0.1304347826 | G43: =Data!F38 -> 4 | H43: 0.1513975155 | I43: =Data!G38 -> 78 | J43: 0.2170451399 | K43: =(Data!H38) -> 5.5 | L43: 0.1893115942 | M43: 0.6881890322
B44: 35 | C44: Suceava | D44: SV | E44: =Data!E39 -> 1 | F44: 0.1304347826 | G44: =Data!F39 -> 7 | H44: 0 | I44: =Data!G39 -> 80 | J44: 0.2130988646 | K44: =(Data!H39) -> 2.7 | L44: 0.09293478261 | M44: 0.4364684298
B45: 36 | C45: Teleorman | D45: TR | E45: =Data!E40 -> 0 | F45: 0 | G45: =Data!F40 -> 0 | H45: 0.3532608696 | I45: =Data!G40 -> 75 | J45: 0.2229645528 | K45: =(Data!H40) -> 1.1 | L45: 0.03786231884 | M45: 0.6140877412
B46: 37 | C46: Timiș | D46: TM | E46: =Data!E41 -> 1 | F46: 0.1304347826 | G46: =Data!F41 -> 0 | H46: 0.3532608696 | I46: =Data!G41 -> 76 | J46: 0.2209914151 | K46: =(Data!H41) -> 0 | L46: 0 | M46: 0.7046870673
B47: 38 | C47: Tulcea | D47: TL | E47: =Data!E42 -> 1 | F47: 0.1304347826 | G47: =Data!F42 -> 1 | H47: 0.3027950311 | I47: =Data!G42 -> 31 | J47: 0.3097826087 | K47: =(Data!H42) -> 0 | L47: 0 | M47: 0.7430124224
B48: 39 | C48: Vâlcea | D48: VL | E48: =Data!E43 -> 0 | F48: 0 | G48: =Data!F43 -> 4 | H48: 0.1513975155 | I48: =Data!G43 -> 72 | J48: 0.2288839657 | K48: =(Data!H43) -> 4.4 | L48: 0.1514492754 | M48: 0.5317307566
B49: 40 | C49: Vaslui | D49: VS | E49: =Data!E44 -> 0 | F49: 0 | G49: =Data!F44 -> 0 | H49: 0.3532608696 | I49: =Data!G44 -> 86 | J49: 0.2012600388 | K49: =(Data!H44) -> 0 | L49: 0 | M49: 0.5545209083
B50: 41 | C50: Vrancea | D50: VN | E50: =Data!E45 -> 0 | F50: 0 | G50: =Data!F45 -> 2 | H50: 0.2523291925 | I50: =Data!G45 -> 81 | J50: 0.2111257269 | K50: =(Data!H45) -> 3.3 | L50: 0.1135869565 | M50: 0.577041876
K53: Sorted
I54: County | J54: Density Utility | K54: County | L54: Elevation Utility
I55: IF | J55: 0 | K55: BT | L55: 0
I56: PH | J56: 0.07643312102 | K56: BR | L56: 0
I57: IS | J57: 0.2420382166 | K57: CT | L57: 0
I58: GL | J58: 0.3121019108 | K58: DJ | L58: 0
I59: DB | J59: 0.3439490446 | K59: GR | L59: 0
I60: BC | J60: 0.4777070064 | K60: GJ | L60: 0
I61: BV | J61: 0.4891719745 | K61: IL | L61: 0
I62: CJ | J62: 0.5286624204 | K62: IF | L62: 0
I63: CT | J63: 0.5541401274 | K63: TM | L63: 0
I64: DJ | J64: 0.5668789809 | K64: TL | L64: 0
I65: NT | J65: 0.5668789809 | K65: VS | L65: 0
I66: AG | J66: 0.5923566879 | K66: TR | L66: 0.1833333333
I67: BT | J67: 0.6178343949 | K67: GL | L67: 0.2
I68: OT | J68: 0.6305732484 | K68: IS | L68: 0.2
I69: MS | J69: 0.6496815287 | K69: OT | L69: 0.2
I70: VS | J70: 0.6496815287 | K70: SM | L70: 0.2
I71: BH | J71: 0.6624203822 | K71: DB | L71: 0.2166666667
I72: GR | J72: 0.6624203822 | K72: BH | L72: 0.25
I73: SM | J73: 0.6687898089 | K73: PH | L73: 0.25
I74: BZ | J74: 0.6815286624 | K74: MH | L74: 0.2833333333
I75: MM | J75: 0.6815286624 | K75: BZ | L75: 0.3333333333
I76: VN | J76: 0.6815286624 | K76: CS | L76: 0.3333333333
I77: SV | J77: 0.6878980892 | K77: SJ | L77: 0.3333333333
I78: BR | J78: 0.7006369427 | K78: AR | L78: 0.4166666667
I79: SB | J79: 0.7006369427 | K79: BV | L79: 0.4166666667
I80: TM | J80: 0.7133757962 | K80: SV | L80: 0.45
I81: TR | J81: 0.7197452229 | K81: AG | L81: 0.5
I82: VL | J82: 0.7388535032 | K82: BC | L82: 0.5333333333
I83: GJ | J83: 0.7579617834 | K83: CL | L83: 0.5333333333
I84: HD | J84: 0.7579617834 | K84: VN | L84: 0.55
I85: IL | J85: 0.7707006369 | K85: CV | L85: 0.5666666667
I86: CL | J86: 0.7898089172 | K86: AB | L86: 0.5833333333
I87: SJ | J87: 0.7898089172 | K87: HD | L87: 0.6666666667
I88: MH | J88: 0.8025477707 | K88: NT | L88: 0.7166666667
I89: AB | J89: 0.8089171975 | K89: VL | L89: 0.7333333333
I90: CV | J90: 0.8152866242 | K90: BN | L90: 0.75
I91: AR | J91: 0.8184713376 | K91: CJ | L91: 0.75
I92: BN | J92: 0.8203821656 | K92: HR | L92: 0.75
I93: HR | J93: 0.8662420382 | K93: MS | L93: 0.75
I94: CS | J94: 0.949044586 | K94: SB | L94: 0.9166666667
I95: TL | J95: 1 | K95: MM | L95: 1

Sheet Control
C2: Control
C4: List of metrics | D4: Contains Major Airport | G4: Show Names
D5: Number of High Peaks | G5: TRUE
D6: Population Density
D7: Average Elevation | G7: Fixed Weights
D8: MAUT - Utility Model Results | G8: TRUE
C10: Selection | D10: 5
C12: Darkness | D12: 5 | E12: The smaller the darker (max: 5.21)
C14: Steps | D14: Threshold | E14: RGB | F14: Legend Name | G14: Min / Max
C15: =C16+$D$12 -> 245 | D15: =G16 -> 0.3276372789 | E15: =udf_RGB(C15,C15,C15) -> 16119285 | F15: =CONCATENATE("Step_",C15) -> Step_245 | G15: =MAX(Data!$K$5:$K$45) -> 0.8465337395
C16: 240 | D16: =D15+$G$17 -> 0.3384476219 | E16: =udf_RGB(C16,C16,C16) -> 15790320 | F16: Step_240 | G16: =MIN(Data!$K$5:$K$45) -> 0.3276372789
C17: 235 | D17: 0.3492579648 | E17: 15461355 | F17: Step_235 | G17: =(G15-G16)/(COUNT($C$15:$C$64)-2) -> 0.01081034293
C18: 230 | D18: 0.3600683077 | E18: 15132390 | F18: Step_230
C19: 225 | D19: 0.3708786507 | E19: 14803425 | F19: Step_225
C20: 220 | D20: 0.3816889936 | E20: 14474460 | F20: Step_220
C21: 215 | D21: 0.3924993365 | E21: 14145495 | F21: Step_215
C22: 210 | D22: 0.4033096794 | E22: 13816530 | F22: Step_210
C23: 205 | D23: 0.4141200224 | E23: 13487565 | F23: Step_205
C24: 200 | D24: 0.4249303653 | E24: 13158600 | F24: Step_200
C25: 195 | D25: 0.4357407082 | E25: 12829635 | F25: Step_195
C26: 190 | D26: 0.4465510512 | E26: 12500670 | F26: Step_190
C27: 185 | D27: 0.4573613941 | E27: 12171705 | F27: Step_185
C28: 180 | D28: 0.468171737 | E28: 11842740 | F28: Step_180
C29: 175 | D29: 0.4789820799 | E29: 11513775 | F29: Step_175
C30: 170 | D30: 0.4897924229 | E30: 11184810 | F30: Step_170
C31: 165 | D31: 0.5006027658 | E31: 10855845 | F31: Step_165
C32: 160 | D32: 0.5114131087 | E32: 10526880 | F32: Step_160
C33: 155 | D33: 0.5222234517 | E33: 10197915 | F33: Step_155
C34: 150 | D34: 0.5330337946 | E34: 9868950 | F34: Step_150
C35: 145 | D35: 0.5438441375 | E35: 9539985 | F35: Step_145
C36: 140 | D36: 0.5546544804 | E36: 9211020 | F36: Step_140
C37: 135 | D37: 0.5654648234 | E37: 8882055 | F37: Step_135
C38: 130 | D38: 0.5762751663 | E38: 8553090 | F38: Step_130
C39: 125 | D39: 0.5870855092 | E39: 8224125 | F39: Step_125
C40: 120 | D40: 0.5978958522 | E40: 7895160 | F40: Step_120
C41: 115 | D41: 0.6087061951 | E41: 7566195 | F41: Step_115
C42: 110 | D42: 0.619516538 | E42: 7237230 | F42: Step_110
C43: 105 | D43: 0.6303268809 | E43: 6908265 | F43: Step_105
C44: 100 | D44: 0.6411372239 | E44: 6579300 | F44: Step_100
C45: 95 | D45: 0.6519475668 | E45: 6250335 | F45: Step_95
C46: 90 | D46: 0.6627579097 | E46: 5921370 | F46: Step_90
C47: 85 | D47: 0.6735682526 | E47: 5592405 | F47: =CONCATENATE("Step_",C47) -> Step_85
C48: 80 | D48: =D47+$G$17 -> 0.6843785956 | E48: 5263440 | F48: Step_80
C49: 75 | D49: 0.6951889385 | E49: 4934475 | F49: Step_75
C50: 70 | D50: 0.7059992814 | E50: 4605510 | F50: Step_70
C51: 65 | D51: 0.7168096244 | E51: 4276545 | F51: Step_65
C52: 60 | D52: 0.7276199673 | E52: 3947580 | F52: Step_60
C53: 55 | D53: 0.7384303102 | E53: 3618615 | F53: Step_55
C54: 50 | D54: 0.7492406531 | E54: 3289650 | F54: Step_50
C55: 45 | D55: 0.7600509961 | E55: 2960685 | F55: Step_45
C56: 40 | D56: 0.770861339 | E56: 2631720 | F56: Step_40
C57: 35 | D57: 0.7816716819 | E57: 2302755 | F57: Step_35
C58: 30 | D58: 0.7924820249 | E58: 1973790 | F58: Step_30
C59: =C60+$D$12 -> 25 | D59: 0.8032923678 | E59: 1644825 | F59: Step_25
C60: 20 | D60: 0.8141027107 | E60: 1315860 | F60: Step_20
C61: 15 | D61: 0.8249130536 | E61: 986895 | F61: Step_15
C62: 10 | D62: 0.8357233966 | E62: 657930 | F62: Step_10
C63: =C64+$D$12 -> 5 | D63: 0.8465337395 | E63: 328965 | F63: Step_5
C64: 0 | D64: 0.8573440824 | E64: 0 | F64: Step_0
C66: Name | D66: Autoshape
C67: D_AB | D67: S_AB
C68: D_AR | D68: S_AR
C69: D_AG | D69: S_AG
C70: D_BC | D70: S_BC
C71: D_BH | D71: S_BH
C72: D_BN | D72: S_BN
C73: D_BT | D73: S_BT
C74: D_BR | D74: S_BR
C75: D_BV | D75: S_BV
C76: D_BZ | D76: S_BZ
C77: D_CL | D77: S_CL
C78: D_CS | D78: S_CS
C79: D_CJ | D79: S_CJ
C80: D_CT | D80: S_CT
C81: D_CV | D81: S_CV
C82: D_DB | D82: S_DB
C83: D_DJ | D83: S_DJ
C84: D_GL | D84: S_GL
C85: D_GR | D85: S_GR
C86: D_GJ | D86: S_GJ
C87: D_HR | D87: S_HR
C88: D_HD | D88: S_HD
C89: D_IL | D89: S_IL
C90: D_IS | D90: S_IS
C91: D_IF | D91: IF
C92: D_MM | D92: S_MM
C93: D_MH | D93: S_MH
C94: D_MS | D94: S_MS
C95: D_NT | D95: S_NT
C96: D_OT | D96: S_OT
C97: D_PH | D97: S_PH
C98: D_SJ | D98: S_SJ
C99: D_SM | D99: S_SM
C100: D_SB | D100: S_SB
C101: D_SV | D101: S_SV
C102: D_TR | D102: S_TR
C103: D_TM | D103: S_TM
C104: D_TL | D104: S_TL
C105: D_VL | D105: S_VL
C106: D_VS | D106: S_VS
C107: D_VN | D107: S_VN

Sheet Data
B2: Data
B4: No. | C4: State | D4: Abbreviation | E4: Airport | F4: High Peaks | G4: Population Density | H4: Est. Elevation | I4: MAUT | K4: Selection
B5: 1 | C5: Alba | D5: AB | E5: 0 | F5: 5 | G5: 61 | H5: 3.5 | I5: =Model!M10 -> 0.4719911712 | K5: =INDEX(E5:I5,1,Control!$D$10) -> 0.4719911712
B6: =B5+1 -> 2 | C6: Arad | D6: AR | E6: 1 | F6: 2 | G6: 59.5 | H6: 2.5 | I6: =Model!M11 -> 0.7223628859 | K6: =INDEX(E6:I6,1,Control!$D$10) -> 0.7223628859
B7: 3 | C7: Argeș | D7: AG | E7: 0 | F7: 0 | G7: 95 | H7: 3 | I7: =Model!M12 -> 0.6400235392 | K7: =INDEX(E7:I7,1,Control!$D$10) -> 0.6400235392
B8: 4 | C8: Bacău | D8: BC | E8: 0 | F8: 2 | G8: 113 | H8: 3.2 | I8: =Model!M13 -> 0.5104594427 | K8: =INDEX(E8:I8,1,Control!$D$10) -> 0.5104594427
B9: 5 | C9: Bihor | D9: BH | E9: 1 | F9: 2 | G9: 84 | H9: 1.5 | I9: =Model!M14 -> 0.639600724 | K9: =INDEX(E9:I9,1,Control!$D$10) -> 0.639600724
B10: 6 | C10: Bistrița-Năsăud | D10: BN | E10: 0 | F10: 0 | G10: 59.2 | H10: 4.5 | I10: =Model!M15 -> 0.7622923013 | K10: =INDEX(E10:I10,1,Control!$D$10) -> 0.7622923013
B11: 7 | C11: Botoșani | D11: BT | E11: 0 | F11: 0 | G11: 91 | H11: 0 | I11: =Model!M16 -> 0.5446552202 | K11: =INDEX(E11:I11,1,Control!$D$10) -> 0.5446552202
B12: 8 | C12: Brăila | D12: BR | E12: 1 | F12: 0 | G12: 78 | H12: 0 | I12: =Model!M17 -> 0.700740792 | K12: =INDEX(E12:I12,1,Control!$D$10) -> 0.700740792
B13: 9 | C13: Brașov | D13: BV | E13: 0 | F13: 0 | G13: 111.2 | H13: 2.5 | I13: =Model!M18 -> 0.5908485646 | K13: =INDEX(E13:I13,1,Control!$D$10) -> 0.5908485646
B14: 10 | C14: Buzău | D14: BZ | E14: 1 | F14: 2 | G14: 81 | H14: 2 | I14: =Model!M19 -> 0.6627302818 | K14: =INDEX(E14:I14,1,Control!$D$10) -> 0.6627302818
B15: 11 | C15: Călărași | D15: CL | E15: 1 | F15: 0 | G15: 64 | H15: 3.2 | I15: =Model!M20 -> 0.8385096465 | K15: =INDEX(E15:I15,1,Control!$D$10) -> 0.8385096465
B16: 12 | C16: Caraș-Severin | D16: CS | E16: 1 | F16: 0 | G16: 39 | H16: 2 | I16: =Model!M21 -> 0.8465337395 | K16: =INDEX(E16:I16,1,Control!$D$10) -> 0.8465337395
B17: 13 | C17: Cluj | D17: CJ | E17: 1 | F17: 2 | G17: 105 | H17: 4.5 | I17: =Model!M22 -> 0.7014257032 | K17: =INDEX(E17:I17,1,Control!$D$10) -> 0.7014257032
B18: 14 | C18: Constanța | D18: CT | E18: 1 | F18: 0 | G18: 101 | H18: 0 | I18: =Model!M23 -> 0.6553586264 | K18: =INDEX(E18:I18,1,Control!$D$10) -> 0.6553586264
B19: 15 | C19: Covasna | D19: CV | E19: 0 | F19: 2 | G19: 60 | H19: 3.4 | I19: =Model!M24 -> 0.6219197953 | K19: =INDEX(E19:I19,1,Control!$D$10) -> 0.6219197953
B20: 16 | C20: Dâmbovița | D20: DB | E20: 0 | F20: 0 | G20: 134 | H20: 1.3 | I20: =Model!M25 -> 0.5045566787 | K20: =INDEX(E20:I20,1,Control!$D$10) -> 0.5045566787
B21: 17 | C21: Dolj | D21: DJ | E21: 1 | F21: 0 | G21: 99 | H21: 0 | I21: =Model!M26 -> 0.6593049017 | K21: =INDEX(E21:I21,1,Control!$D$10) -> 0.6593049017
B22: 18 | C22: Galați | D22: GL | E22: 0 | F22: 0 | G22: 139 | H22: 1.2 | I22: =Model!M27 -> 0.4912489615 | K22: =INDEX(E22:I22,1,Control!$D$10) -> 0.4912489615
B23: 19 | C23: Giurgiu | D23: GR | E23: 0 | F23: 0 | G23: 84 | H23: 0 | I23: =Model!M28 -> 0.5584671836 | K23: =INDEX(E23:I23,1,Control!$D$10) -> 0.5584671836
B24: 20 | C24: Gorj | D24: GJ | E24: 0 | F24: 2 | G24: 69 | H24: 0 | I24: =Model!M29 -> 0.4871325711 | K24: =INDEX(E24:I24,1,Control!$D$10) -> 0.4871325711
B25: 21 | C25: Harghita | D25: HR | E25: 0 | F25: 4 | G25: 52 | H25: 4.5 | I25: =Model!M30 -> 0.5746355382 | K25: =INDEX(E25:I25,1,Control!$D$10) -> 0.5746355382
B26: 22 | C26: Hunedoara | D26: HD | E26: 0 | F26: 7 | G26: 69 | H26: 4 | I26: =Model!M31 -> 0.372484538 | K26: =INDEX(E26:I26,1,Control!$D$10) -> 0.372484538
B27: 23 | C27: Ialomița | D27: IL | E27: 0 | F27: 0 | G27: 67 | H27: 0 | I27: =Model!M32 -> 0.5920105234 | K27: =INDEX(E27:I27,1,Control!$D$10) -> 0.5920105234
B28: 24 | C28: Iași | D28: IS | E28: 1 | F28: 0 | G28: 150 | H28: 1.2 | I28: =Model!M33 -> 0.5999792301 | K28: =INDEX(E28:I28,1,Control!$D$10) -> 0.5999792301
B29: 25 | C29: Ilfov | D29: IF | E29: 1 | F29: 0 | G29: 188 | H29: 0 | I29: =Model!M34 -> 0.4836956522 | K29: =INDEX(E29:I29,1,Control!$D$10) -> 0.4836956522
B30: 26 | C30: Maramureș | D30: MM | E30: 0 | F30: 0 | G30: 81 | H30: 6 | I30: =Model!M35 -> 0.7709083356 | K30: =INDEX(E30:I30,1,Control!$D$10) -> 0.7709083356
B31: 27 | C31: Mehedinți | D31: MH | E31: 0 | F31: 0 | G31: 62 | H31: 1.7 | I31: =Model!M36 -> 0.6603907043 | K31: =INDEX(E31:I31,1,Control!$D$10) -> 0.6603907043
B32: 28 | C32: Mureș | D32: MS | E32: 1 | F32: 0 | G32: 86 | H32: 4.5 | I32: =Model!M37 -> 0.8398469953 | K32: =INDEX(E32:I32,1,Control!$D$10) -> 0.8398469953
B33: 29 | C33: Neamț | D33: NT | E33: 0 | F33: 0 | G33: 99 | H33: 4.3 | I33: =Model!M38 -> 0.6768773655 | K33: =INDEX(E33:I33,1,Control!$D$10) -> 0.6768773655
B34: 30 | C34: Olt | D34: OT | E34: 1 | F34: 0 | G34: 89 | H34: 1.2 | I34: =Model!M39 -> 0.7203406259 | K34: =INDEX(E34:I34,1,Control!$D$10) -> 0.7203406259
B35: 31 | C35: Prahova | D35: PH | E35: 0 | F35: 2 | G35: 176 | H35: 1.5 | I35: =Model!M40 -> 0.3276372789 | K35: =INDEX(E35:I35,1,Control!$D$10) -> 0.3276372789
B36: 32 | C36: Sălaj | D36: SJ | E36: 0 | F36: 1 | G36: 64 | H36: 2 | I36: =Model!M41 -> 0.6163046775 | K36: =INDEX(E36:I36,1,Control!$D$10) -> 0.6163046775
B37: 33 | C37: Satu-Mare | D37: SM | E37: 0 | F37: 0 | G37: 83 | H37: 1.2 | I37: =Model!M42 -> 0.6017446691 | K37: =INDEX(E37:I37,1,Control!$D$10) -> 0.6017446691
B38: 34 | C38: Sibiu | D38: SB | E38: 1 | F38: 4 | G38: 78 | H38: 5.5 | I38: =Model!M43 -> 0.6881890322 | K38: =INDEX(E38:I38,1,Control!$D$10) -> 0.6881890322
B39: 35 | C39: Suceava | D39: SV | E39: 1 | F39: 7 | G39: 80 | H39: 2.7 | I39: =Model!M44 -> 0.4364684298 | K39: =INDEX(E39:I39,1,Control!$D$10) -> 0.4364684298
B40: 36 | C40: Teleorman | D40: TR | E40: 0 | F40: 0 | G40: 75 | H40: 1.1 | I40: =Model!M45 -> 0.6140877412 | K40: =INDEX(E40:I40,1,Control!$D$10) -> 0.6140877412
B41: 37 | C41: Timiș | D41: TM | E41: 1 | F41: 0 | G41: 76 | H41: 0 | I41: =Model!M46 -> 0.7046870673 | K41: =INDEX(E41:I41,1,Control!$D$10) -> 0.7046870673
B42: 38 | C42: Tulcea | D42: TL | E42: 1 | F42: 1 | G42: 31 | H42: 0 | I42: =Model!M47 -> 0.7430124224 | K42: =INDEX(E42:I42,1,Control!$D$10) -> 0.7430124224
B43: 39 | C43: Vâlcea | D43: VL | E43: 0 | F43: 4 | G43: 72 | H43: 4.4 | I43: =Model!M48 -> 0.5317307566 | K43: =INDEX(E43:I43,1,Control!$D$10) -> 0.5317307566
B44: 40 | C44: Vaslui | D44: VS | E44: 0 | F44: 0 | G44: 86 | H44: 0 | I44: =Model!M49 -> 0.5545209083 | K44: =INDEX(E44:I44,1,Control!$D$10) -> 0.5545209083
B45: 41 | C45: Vrancea | D45: VN | E45: 0 | F45: 2 | G45: 81 | H45: 3.3 | I45: =Model!M50 -> 0.577041876 | K45: =INDEX(E45:I45,1,Control!$D$10) -> 0.577041876

Sheet Peaks
A2: Altitude | B2: Mountain Peaks
B4: County | C4: Height (m) | D4: County | E4: No. Peaks
B5: Alba | C5: 1826 | D5: Alba | E5: =COUNTIF(County,D5) -> 5
B6: Alba | C6: 1437 | D6: Arad | E6: 2
B7: Alba | C7: 1258 | D7: Argeş | E7: 5
B8: Alba | C8: 1849 | D8: Bacău | E8: 2
B9: Alba | C9: 1369 | D9: Bihor | E9: 2
B10: Arad | C10: 1112 | D10: Bistriţa-Năsăud | E10: 2
B11: Arad | C11: 836 | D11: Braşov | E11: 5
B12: Argeş | C12: 2535 | D12: Buzău | E12: 2
B13: Argeş | C13: 2391 | D13: Caraş-Severin | E13: 9
B14: Argeş | C14: 2133 | D14: Cluj | E14: 2
B15: Argeş | C15: 2544 | D15: Covasna | E15: 2
B16: Argeş | C16: 2462 | D16: Dâmboviţa | E16: 2
B17: Bacău | C17: 1649 | D17: Gorj | E17: 2
B18: Bacău | C18: 1664 | D18: Harghita | E18: 4
B19: Bihor | C19: 1849 | D19: Hunedoara | E19: 7
B20: Bihor | C20: 1112 | D20: Maramureş | E20: 6
B21: Bistriţa-Năsăud | C21: 2279 | D21: Mehedinţi | E21: 1
B22: Bistriţa-Năsăud | C22: 1837 | D22: Mureş | E22: 2
B23: Braşov | C23: 2535 | D23: Neamţ | E23: 5
B24: Braşov | C24: 2505 | D24: Prahova | E24: 2
B25: Braşov | C25: 1954 | D25: Sălaj | E25: 1
B26: Braşov | C26: 1104 | D26: Sibiu | E26: 4
B27: Braşov | C27: 2238 | D27: Suceava | E27: 7
B28: Buzău | C28: 1784 | D28: Timiş | E28: 1
B29: Buzău | C29: 1772 | D29: Tulcea | E29: 1
B30: Caraş-Severin | C30: 2291 | D30: Vâlcea | E30: 4
B31: Caraş-Severin | C31: 2229 | D31: Vrancea | E31: 2
B32: Caraş-Severin | C32: 2190
B33: Caraş-Severin | C33: 1733
B34: Caraş-Severin | C34: 1447
B35: Caraş-Severin | C35: 1374
B36: Caraş-Severin | C36: 1160
B37: Caraş-Severin | C37: 2190
B38: Caraş-Severin | C38: 1224
B39: Cluj | C39: 1826
B40: Cluj | C40: 1836
B41: Covasna | C41: 1777
B42: Covasna | C42: 1558
B43: Dâmboviţa | C43: 2505
B44: Dâmboviţa | C44: 2133
B45: Gorj | C45: 2519
B46: Gorj | C46: 2229
B47: Harghita | C47: 1800
B48: Harghita | C48: 1792
B49: Harghita | C49: 1558
B50: Harghita | C50: 1301
B51: Hunedoara | C51: 2519
B52: Hunedoara | C52: 2509
B53: Hunedoara | C53: 2482
B54: Hunedoara | C54: 2291
B55: Hunedoara | C55: 2130
B56: Hunedoara | C56: 2059
B57: Hunedoara | C57: 1868
B58: Maramureş | C58: 2303
B59: Maramureş | C59: 1956
B60: Maramureş | C60: 1837
B61: Maramureş | C61: 1443
B62: Maramureş | C62: 1307
B63: Maramureş | C63: 1930
B64: Mehedinţi | C64: 1466
B65: Mureş | C65: 2100
B66: Mureş | C66: 1776
B67: Neamţ | C67: 1907
B68: Neamţ | C68: 1900
B69: Neamţ | C69: 1859
B70: Neamţ | C70: 1530
B71: Neamţ | C71: 1792
B72: Prahova | C72: 2505
B73: Prahova | C73: 1954
B74: Sălaj | C74: 996
B75: Sibiu | C75: 2283
B76: Sibiu | C76: 2244
B77: Sibiu | C77: 2242
B78: Sibiu | C78: 2535
B79: Suceava | C79: 2100
B80: Suceava | C80: 1859
B81: Suceava | C81: 1791
B82: Suceava | C82: 1650
B83: Suceava | C83: 1588
B84: Suceava | C84: 1856
B85: Suceava | C85: 1495
B86: Timiş | C86: 1374
B87: Tulcea | C87: 467
B88: Vâlcea | C88: 2283
B89: Vâlcea | C89: 2242
B90: Vâlcea | C90: 2124
B91: Vâlcea | C91: 1668
B92: Vrancea | C92: 1777
B93: Vrancea | C93: 1784

Sheet About
B2: The software is made available under the terms of the Creative Commons Attribution-ShareAlike 3.0 license. Copyright (c) 2010 by Randy Brooks.
B4: Acknowledgment: | D4: Special thanks to R. Mundigl for providing insight on the creation of Choropleth or Thematic maps in Excel.
B5: Mundigl, R. (2008, November 20). Build your own Choropleth Maps with Excel. Retrieved from http://www.clearlyandsimply.com/clearly_and_simply/2009/08/build-your-own-choropleth-maps-with-excel.html
